bitfinex-derivatives/quotes_SOLF0:USTF0_20240930
["timestamp","ask_amount","ask_price","bid_price","bid_amount"]
[1727690379213,1.0,154.71,154.59,1.2983]
[1727690379417,1.0,154.71,154.6,12.41]
[1727690379619,13.41,154.71,154.6,12.41]
[1727690379815,3.2323,154.67,154.62,12.41]
[1727690380217,3.35732,154.67,154.62,12.41]
[1727690380421,3.2324,154.66,154.62,12.41]
[1727690382519,0.12502,154.67,154.62,12.41]
[1727690382825,0.12502,154.67,154.59,13.7083]
[1727690384219,3.2329,154.64,154.59,13.7083]
[1727690384626,0.12502,154.67,154.59,13.7083]
[1727690384825,3.2329,154.64,154.59,13.7083]
[1727690385019,3.2329,154.64,154.59,16.9421]
[1727690385629,3.2328,154.64,154.6,3.2336]
[1727690385818,0.12502,154.67,154.59,13.7083]
[1727690386522,3.2328,154.65,154.6,3.2336]
[1727690386725,0.12502,154.67,154.59,13.7083]
[1727690387121,3.233,154.63,154.59,13.7083]
[1727690388536,12.53502,154.67,154.59,1.2983]
[1727690389130,3.2334,154.62,154.59,1.2983]
[1727690389424,12.53502,154.67,154.59,1.2983]
[1727690389631,0.12502,154.67,154.59,1.2983]
[1727690390028,3.233,154.64,154.59,4.5319]
[1727690390936,3.233,154.64,154.6,3.2336]
[1727690391128,3.233,154.64,154.59,1.2983]
[1727690391331,0.12502,154.67,154.59,1.2983]
[1727690391332,3.2331,154.63,154.59,1.2983]
[1727690392338,0.12502,154.67,154.59,1.2983]
[1727690392524,3.2328,154.64,154.59,1.2983]
[1727690392930,3.2345,154.56,154.42,22.66576643]
[1727690393229,0.12502,154.67,154.51,3.15510125]
[1727690393230,12.41,154.61,154.51,3.15510125]
[1727690393429,3.2341,154.58,154.53,3.2349]
[1727690393623,12.41,154.61,154.53,3.2349]
[1727690393929,0.12502,154.67,154.51,3.2353]
[1727690393930,3.2345,154.56,154.51,3.2353]
[1727690394423,3.2345,154.56,154.49,0.12502]
[1727690394628,12.41,154.58,154.49,3.32890983]
[1727690394629,3.2343,154.57,154.49,3.32890983]
[1727690394834,12.41,154.58,154.49,15.73890983]
[1727690395039,12.41,154.58,154.49,3.32890983]
[1727690395226,12.41,154.58,154.49,0.12502]
[1727690395649,19.89,154.59,154.49,0.12502]
[1727690395836,3.2345,154.56,154.49,0.12502]
[1727690396336,19.89,154.57,154.49,0.12502]
[1727690396833,3.2357,154.5,154.49,0.12502]
[1727690397034,19.89,154.57,154.49,0.12502]
[1727690397537,3.2355,154.51,154.49,0.12502]
[1727690398029,3.2349,154.54,154.49,0.12502]
[1727690398224,19.89,154.6,154.49,0.12502]
[1727690398628,19.89,154.57,154.49,0.12502]
[1727690399638,3.2352,154.53,154.49,0.12502]
[1727690399838,19.89,154.57,154.49,0.12502]
[1727690400043,1.0,154.59,154.49,0.12502]
[1727690401734,3.2351,154.53,154.49,3.36092]
[1727690402045,1.0,154.59,154.49,0.12502]
[1727690402236,3.2349,154.54,154.5,3.2357]
[1727690402639,1.0,154.59,154.5,3.2357]
[1727690402939,1.0,154.59,154.49,3.36092]
[1727690403136,1.0,154.59,154.49,0.12502]
[1727690403434,3.235,154.54,154.49,3.36072]
[1727690403640,3.235,154.54,154.49,0.12502]
[1727690403837,1.0,154.59,154.49,0.12502]
[1727690404441,1.0,154.59,154.51,3.2354]
[1727690404635,1.0,154.59,154.5,2.5445]
[1727690404945,3.2349,154.54,154.5,2.5445]
[1727690405144,1.0,154.59,154.5,2.5445]
[1727690405532,3.2344,154.57,154.5,5.7801]
[1727690405731,1.0,154.59,154.5,2.5445]
[1727690406142,3.2349,154.55,154.5,5.7801]
[1727690406343,1.0,154.59,154.5,2.5445]
[1727690406540,3.2357,154.51,154.49,0.12502]
[1727690406752,19.89,154.51,154.44,0.12518]
[1727690406936,3.29436715,154.51,154.44,0.12518]
[1727690407241,0.12502,154.55,154.44,0.12518]
[1727690407445,19.89,154.54,154.44,0.12518]
[1727690407747,3.2365,154.47,154.44,0.12518]
[1727690408143,1.0,154.53,154.44,0.12518]
[1727690408340,0.12502,154.49,154.19,0.12502]
[1727690408548,20.01502,154.49,154.33,23.07105853]
[1727690409145,0.12502,154.49,154.33,3.18105853]
[1727690409443,0.12502,154.49,154.36,19.89]
[1727690409947,0.12502,154.49,154.39,1.2616]
[1727690410345,0.12502,154.49,154.4,2.7029]
[1727690411144,0.12502,154.49,154.41,3.23702817]
[1727690411345,0.12502,154.49,154.4,2.7029]
[1727690411545,0.12502,154.49,154.48,3.2361]
[1727690411844,0.12502,154.49,154.43,3.26649692]
[1727690412046,0.12502,154.55,154.49,3.2358]
[1727690412047,3.235,154.54,154.49,3.2358]
[1727690412248,3.235,154.54,154.43,0.12502]
[1727690412249,0.12502,154.55,154.43,3.29469105]
[1727690412449,0.12502,154.55,154.43,0.12502]
[1727690412753,0.12502,154.55,154.43,3.31217799]
[1727690412942,0.12502,154.55,154.45,19.89]
[1727690413140,0.12502,154.55,154.48,3.2361]
[1727690413445,0.12502,154.55,154.49,2.6701]
[1727690415240,3.35982,154.55,154.5,3.2355]
[1727690416046,0.12502,154.55,154.49,2.6701]
[1727690416247,3.2349,154.54,154.49,5.906]
[1727690416446,0.12502,154.55,154.49,2.6701]
[1727690416647,3.2349,154.54,154.5,3.2357]
[1727690416854,0.12502,154.55,154.43,3.34666251]
[1727690417043,0.12502,154.55,154.45,19.89]
[1727690417246,3.2353,154.53,154.48,3.236]
[1727690417452,3.2353,154.53,154.45,19.89]
[1727690417653,0.12502,154.55,154.49,3.2357]
[1727690417654,3.2351,154.54,154.49,3.2357]
[1727690417952,0.12502,154.55,154.45,19.89]
[1727690418355,0.12502,154.55,154.47,19.89]
[1727690419254,0.12502,154.55,154.52,3.2351]
[1727690419758,0.12502,154.55,154.47,19.89]
[1727690419759,3.2357,154.51,154.47,19.89]
[1727690420054,0.12502,154.55,154.44,23.8804]
[1727690420251,3.2359,154.49,154.45,3.2366]
[1727690420454,0.12502,154.55,154.45,3.2366]
[1727690420951,3.236,154.49,154.45,3.2367]
[1727690421449,3.2358,154.5,154.46,3.2365]
[1727690421650,0.12502,154.55,154.44,3.9904]
[1727690422249,3.2357,154.5,154.45,3.2366]
[1727690422457,3.2357,154.5,154.44,3.9904]
[1727690422755,0.12502,154.55,154.44,3.9904]
[1727690422959,3.2354,154.52,154.47,3.2362]
[1727690423354,0.12502,154.55,154.44,3.9904]
[1727690423651,0.12502,154.55,154.45,3.2366]
[1727690424050,3.2356,154.51,154.44,3.9904]
[1727690424553,3.2353,154.52,154.47,3.2362]
[1727690424861,0.12502,154.55,154.45,19.89]
[1727690425058,3.2353,154.53,154.48,3.2361]
[1727690425358,0.12502,154.55,154.45,19.89]
[1727690426758,3.2353,154.52,154.45,19.89]
[1727690426954,0.12502,154.55,154.45,19.89]
[1727690427261,0.12502,154.55,154.48,19.89]
[1727690427753,0.12502,154.61,154.49,0.12502]
[1727690428356,3.234,154.59,154.49,0.12502]
[1727690428663,0.12502,154.61,154.49,0.12502]
[1727690429364,3.2344,154.57,154.53,3.2349]
[1727690429563,0.12502,154.61,154.54,2.5202]
[1727690430664,3.2338,154.59,154.55,3.2347]
[1727690430856,0.12502,154.61,154.54,2.5202]
[1727690431263,3.2338,154.59,154.54,2.5202]
[1727690431558,0.12502,154.61,154.54,2.5202]
[1727690431956,19.89,154.59,154.54,2.5202]
[1727690432164,3.235,154.54,154.5,3.2356]
[1727690432364,19.89,154.59,154.5,1.2366]
[1727690432753,3.2349,154.54,154.51,4.4815]
[1727690432963,3.2349,154.54,154.51,1.246]
[1727690433261,19.89,154.59,154.51,1.246]
[1727690434266,3.2353,154.52,154.51,1.246]
[1727690434463,19.89,154.57,154.5,1.2366]
[1727690435560,3.2355,154.51,154.5,1.2366]
[1727690435756,19.89,154.57,154.5,1.2366]
[1727690436058,19.89,154.58,154.5,1.2366]
[1727690436475,3.2351,154.54,154.5,1.2366]
[1727690436862,19.89,154.58,154.5,1.2366]
[1727690437062,3.2346,154.56,154.51,4.567]
[1727690437265,20.01502,154.61,154.51,4.567]
[1727690437571,20.01502,154.61,154.51,1.3317]
[1727690437762,20.01502,154.61,154.53,3.2349]
[1727690438266,20.01502,154.61,154.51,1.3317]
[1727690438470,20.01502,154.61,154.52,3.2353]
[1727690438875,3.2346,154.56,154.52,3.2353]
[1727690439166,3.2346,154.56,154.51,1.3317]
[1727690439167,0.12502,154.61,154.51,4.5565992]
[1727690439366,0.12502,154.61,154.51,1.3317]
[1727690439760,0.12502,154.61,154.53,3.2349]
[1727690439967,0.12502,154.61,154.51,1.3317]
[1727690440168,0.12502,154.61,154.54,3.2348]
[1727690440366,3.2341,154.58,154.54,3.2348]
[1727690440758,0.12502,154.61,154.54,3.2349]
[1727690440963,3.234,154.58,154.51,4.55433361]
[1727690441164,0.12502,154.61,154.51,1.3317]
[1727690441364,20.01502,154.61,154.51,1.3317]
[1727690442668,3.2343,154.57,154.53,3.2351]
[1727690442867,20.01502,154.61,154.53,3.2351]
[1727690443064,3.2344,154.57,154.53,3.2351]
[1727690443267,20.01502,154.61,154.53,3.2351]
[1727690443763,3.2343,154.57,154.53,3.2351]
[1727690444163,20.01502,154.61,154.53,3.2351]
[1727690444367,20.01502,154.61,154.51,4.59726749]
[1727690444671,0.12502,154.61,154.51,4.59726749]
[1727690444867,3.2346,154.56,154.52,3.2352]
[1727690445665,3.2342,154.58,154.54,3.2349]
[1727690445880,0.12502,154.61,154.51,4.59726749]
[1727690446075,19.89,154.56,154.5,1.2366]
[1727690446275,0.12502,154.61,154.49,1.36472]
[1727690446276,3.2357,154.5,154.49,0.12502]
[1727690448172,3.2357,154.5,154.44,2.6028]
[1727690448380,3.237,154.44,154.43,0.12502]
[1727690449182,0.2597,154.54,154.43,0.12502]
[1727690449183,19.89,154.54,154.43,0.12502]
[1727690449378,0.12502,154.55,154.43,0.12502]
[1727690449576,0.12502,154.55,154.44,3.237]
[1727690449879,0.12502,154.55,154.43,0.12502]
[1727690450073,3.2358,154.5,154.43,0.12502]
[1727690450274,19.89,154.54,154.43,0.12502]
[1727690450669,0.12502,154.55,154.43,0.12502]
[1727690450871,0.12502,154.55,154.45,19.89]
[1727690451081,0.12502,154.55,154.46,2.5449]
[1727690451475,0.12502,154.55,154.47,1.2609]
[1727690451675,0.12502,154.55,154.49,3.2358]
[1727690452179,0.12502,154.55,154.5,3.31465283]
[1727690452489,20.01502,154.61,154.49,0.12502]
[1727690452778,20.01502,154.61,154.5,3.19556738]
[1727690454187,20.01502,154.61,154.49,0.12502]
[1727690454880,19.89,154.59,154.49,0.12502]
[1727690455072,19.89,154.56,154.49,0.12502]
[1727690455598,3.2357,154.5,154.49,0.12502]
[1727690455883,19.89,154.56,154.49,0.12502]
[1727690456074,3.2357,154.5,154.49,0.12502]
[1727690456785,3.2355,154.51,154.49,0.12502]
[1727690456991,19.89,154.59,154.49,0.12502]
[1727690457275,3.2356,154.51,154.49,0.12502]
[1727690458982,3.2357,154.5,154.49,0.12502]
[1727690464281,0.3825,154.58,154.49,0.12502]
[1727690464478,19.89,154.59,154.49,0.12502]
[1727690464683,20.01502,154.61,154.49,0.12502]
[1727690464989,0.94627006,154.6,154.49,0.12502]
[1727690465185,20.01502,154.61,154.49,0.12502]
[1727690465381,20.01502,154.61,154.49,2.67072]
[1727690465581,3.2348,154.55,154.51,3.2353]
[1727690465784,19.89,154.59,154.49,2.67072]
[1727690466283,3.2357,154.5,154.49,2.67072]
[1727690466683,3.2357,154.5,154.49,0.12502]
[1727690468486,19.89,154.56,154.49,0.12502]
[1727690469079,3.2357,154.5,154.49,0.12502]
[1727690470484,3.238,154.39,154.38,2.74566564]
[1727690470986,19.89,154.39,154.31,0.12502]
[1727690471689,19.89,154.4,154.31,0.12502]
[1727690472082,3.2384,154.38,154.31,0.12502]
[1727690472282,19.89,154.42,154.31,0.12502]
[1727690472785,3.2389,154.35,154.31,0.12502]
[1727690472988,19.89,154.42,154.31,0.12502]
[1727690473187,19.89,154.4,154.31,0.12502]
[1727690475592,3.2395,154.32,154.31,0.12502]
[1727690476597,19.89,154.37,154.31,0.12502]
[1727690476794,3.2393,154.33,154.31,0.12502]
[1727690476989,19.89,154.37,154.31,0.12502]
[1727690477186,3.2395,154.32,154.31,0.12502]
[1727690478997,19.89,154.37,154.31,0.12502]
[1727690479299,3.2395,154.32,154.31,0.12502]
[1727690481395,3.2392,154.34,154.31,0.12502]
[1727690481597,80.75437577,154.41,154.31,0.12502]
[1727690481796,3.2382,154.38,154.33,3.2392]
[1727690481993,3.2382,154.38,154.31,0.12502]
[1727690482196,79.75437577,154.41,154.31,0.12502]
[1727690482892,79.75437577,154.41,154.31,20.01502]
[1727690483897,3.2384,154.38,154.33,3.2391]
[1727690484303,79.75437577,154.41,154.33,3.2391]
[1727690484603,3.2383,154.38,154.33,3.2391]
[1727690484903,79.75437577,154.41,154.33,3.2391]
[1727690485406,79.75437577,154.41,154.31,20.01502]
[1727690485705,3.238,154.39,154.32,3.31852747]
[1727690485900,79.75437577,154.41,154.32,6.55792747]
[1727690486299,3.2381,154.39,154.33,2.6251]
[1727690486496,79.75437577,154.41,154.34,3.239]
[1727690486702,79.75437577,154.41,154.33,2.6251]
[1727690487004,79.75437577,154.41,154.35,3.2388]
[1727690487304,79.75437577,154.41,154.34,21.2323]
[1727690487305,3.2378,154.41,154.34,21.2323]
[1727690487495,0.12502,154.43,154.34,21.2323]
[1727690488100,0.12502,154.43,154.38,3.2381]
[1727690488304,0.12502,154.43,154.34,21.2323]
[1727690489206,3.2375,154.42,154.36,3.2385]
[1727690489408,3.2375,154.42,154.34,21.2323]
[1727690490111,0.12502,154.43,154.37,19.89]
[1727690490497,3.36222,154.43,154.39,3.238]
[1727690490697,0.12502,154.43,154.37,19.89]
[1727690490901,23.0671131,154.53,154.39,19.89]
[1727690491207,6.4674,154.6,154.4,2.526]
[1727690491208,20.01502,154.55,154.4,2.526]
[1727690491609,20.01502,154.55,154.4,5.68886305]
[1727690492110,3.2362,154.48,154.43,3.237]
[1727690492804,20.01502,154.55,154.42,19.89]
[1727690493205,3.2359,154.5,154.44,3.2369]
[1727690493410,3.2359,154.5,154.42,19.89]
[1727690493805,0.12502,154.55,154.42,19.89]
[1727690494008,0.12502,154.55,154.45,19.89]
[1727690495709,3.2349,154.54,154.49,3.2358]
[1727690496008,3.2349,154.54,154.49,1.2832]
[1727690496211,0.12502,154.55,154.51,3.2355]
[1727690496614,0.12502,154.55,154.5,24.31549088]
[1727690496823,0.12502,154.55,154.5,4.42549088]
[1727690497121,0.12502,154.55,154.5,1.2399]
[1727690497419,3.35982,154.55,154.5,4.4754]
[1727690497617,0.12502,154.55,154.5,21.1299]
[1727690498505,0.12502,154.55,154.51,3.2353]
[1727690498708,0.12502,154.55,154.5,21.1299]
[1727690499110,0.12502,154.55,154.53,3.2349]
[1727690499304,0.12502,154.61,154.51,1.3578]
[1727690499511,3.2339,154.59,154.55,3.2346]
[1727690499718,0.12502,154.61,154.51,1.3578]
[1727690499922,0.12502,154.61,154.53,19.89]
[1727690500219,3.234,154.59,154.53,19.89]
[1727690500711,0.12502,154.61,154.53,19.89]
[1727690500915,0.12502,154.61,154.55,3.2345]
[1727690500916,3.2338,154.6,154.55,3.2345]
[1727690501110,0.12502,154.61,154.53,19.89]
[1727690501315,0.12502,154.61,154.57,3.2341]
[1727690501520,0.12502,154.61,154.56,23.18578689]
[1727690501716,0.12502,154.61,154.57,1.3001]
[1727690502620,0.12502,154.61,154.57,4.5343]
[1727690502923,0.12502,154.61,154.57,1.3001]
[1727690504322,0.12502,154.61,154.58,1.291]
[1727690505223,0.12502,154.61,154.59,1.3439]
[1727690505424,0.12502,154.67,154.59,1.3439]
[1727690505728,3.2328,154.65,154.6,3.2335]
[1727690505919,0.12502,154.67,154.6,3.2335]
[1727690506125,0.12502,154.67,154.59,21.2339]
[1727690506323,3.2328,154.64,154.59,24.4676]
[1727690506526,0.12502,154.67,154.59,21.2339]
[1727690506925,3.2327,154.65,154.6,3.2336]
[1727690507227,0.12502,154.67,154.59,21.2339]
[1727690507429,3.2329,154.64,154.59,24.4675]
[1727690507619,0.12502,154.67,154.59,24.4675]
[1727690507815,0.12502,154.67,154.59,21.2339]
[1727690508016,0.12502,154.67,154.6,3.2336]
[1727690508429,0.12502,154.67,154.59,21.2339]
[1727690508627,0.12502,154.67,154.59,1.3439]
[1727690509329,3.2332,154.63,154.59,1.3439]
[1727690510329,3.2336,154.6,154.57,1.3001]
[1727690510531,20.01502,154.67,154.57,1.3001]
[1727690510727,20.01502,154.67,154.54,2.5656]
[1727690510930,0.94861142,154.66,154.54,2.5656]
[1727690511236,19.89,154.65,154.54,2.5656]
[1727690511533,20.4057,154.65,154.54,2.5656]
[1727690511834,20.4057,154.65,154.54,1.2394]
[1727690512030,3.2344,154.57,154.54,1.2394]
[1727690512831,3.2335,154.61,154.54,1.2394]
[1727690513223,0.5157,154.65,154.54,1.2394]
[1727690513827,0.5157,154.65,154.54,4.4742]
[1727690514038,0.12502,154.67,154.54,1.2394]
[1727690514434,0.12502,154.67,154.55,3.35962]
[1727690514435,3.2338,154.6,154.55,3.35962]
[1727690514738,0.12502,154.67,154.55,3.35962]
[1727690514936,3.2336,154.6,154.56,3.2344]
[1727690515440,0.12502,154.67,154.55,0.12502]
[1727690515739,0.12502,154.67,154.55,3.35962]
[1727690516341,20.01502,154.67,154.55,0.12502]
[1727690517134,3.2345,154.56,154.55,0.12502]
[1727690517343,1.0,154.66,154.55,0.12502]
[1727690517526,19.89,154.64,154.55,0.12502]
[1727690518337,3.2342,154.58,154.55,0.12502]
[1727690518929,3.2344,154.57,154.55,0.12502]
[1727690519136,19.89,154.64,154.55,0.12502]
[1727690519531,3.2342,154.58,154.55,0.12502]
[1727690519736,79.62223146,154.65,154.55,0.12502]
[1727690519942,79.62223146,154.65,154.56,19.89]
[1727690520337,79.62223146,154.65,154.56,23.10112148]
[1727690520534,79.62223146,154.65,154.57,1.371]
[1727690520843,79.62223146,154.65,154.61,3.2334]
[1727690521043,79.62223146,154.65,154.59,19.89]
[1727690521449,79.62223146,154.65,154.62,3.2332]
[1727690521745,79.62223146,154.65,154.59,19.89]
[1727690521933,3.2329,154.64,154.6,3.2336]
[1727690522239,0.12502,154.67,154.6,3.2336]
[1727690522435,3.2326,154.65,154.59,19.89]
[1727690522636,0.12502,154.67,154.59,19.89]
[1727690522938,3.2329,154.64,154.59,19.89]
[1727690523241,0.12502,154.67,154.59,19.89]
[1727690523441,3.233,154.63,154.59,19.89]
[1727690523743,0.12502,154.67,154.58,1.2729]
[1727690524241,0.12502,154.67,154.57,1.371]
[1727690524636,3.2338,154.6,154.57,1.371]
[1727690524951,0.12502,154.67,154.57,1.371]
[1727690524952,20.01502,154.67,154.57,1.371]
[1727690525333,20.01502,154.67,154.57,4.6051]
[1727690525528,20.01502,154.67,154.57,1.371]
[1727690525529,0.12502,154.67,154.57,1.371]
[1727690525743,3.2334,154.61,154.57,1.371]
[1727690525937,0.12502,154.67,154.57,1.371]
[1727690526936,3.2331,154.63,154.6,3.2336]
[1727690527137,0.12502,154.67,154.59,19.89]
[1727690527644,3.2327,154.65,154.59,19.89]
[1727690528245,0.12502,154.67,154.59,19.89]
[1727690528743,0.12502,154.67,154.6,3.2335]
[1727690528945,3.233,154.64,154.6,3.2335]
[1727690529144,0.12502,154.67,154.6,3.2335]
[1727690529439,0.12502,154.67,154.57,21.261]
[1727690529843,3.2331,154.63,154.59,3.2337]
[1727690530043,0.12502,154.67,154.57,21.261]
[1727690530948,3.2328,154.64,154.57,1.371]
[1727690531137,0.12502,154.67,154.57,1.371]
[1727690531337,0.12502,154.67,154.57,21.261]
[1727690531534,0.12502,154.67,154.6,3.2335]
[1727690531943,0.12502,154.67,154.57,21.261]
[1727690532145,3.2329,154.64,154.57,21.261]
[1727690532343,0.12502,154.67,154.57,21.261]
[1727690532840,3.2327,154.65,154.57,21.261]
[1727690533449,3.2327,154.65,154.61,3.2332]
[1727690533748,0.12502,154.67,154.61,3.2332]
[1727690534339,3.2327,154.65,154.61,3.2332]
[1727690535446,3.2324,154.66,154.62,3.2331]
[1727690535637,3.2324,154.66,154.6,19.89]
[1727690535638,0.12502,154.67,154.61,1.2544]
[1727690535837,0.12502,154.67,154.61,2.5359]
[1727690536845,3.2325,154.66,154.62,3.2332]
[1727690537256,0.12502,154.67,154.61,2.5359]
[1727690537448,3.2324,154.66,154.62,3.2331]
[1727690537949,0.12502,154.67,154.62,3.2331]
[1727690537950,0.12502,154.67,154.64,3.2326]
[1727690538157,0.12502,154.67,154.62,19.89]
[1727690538450,0.12502,154.67,154.61,2.5359]
[1727690539952,3.2324,154.66,154.62,3.2331]
[1727690540154,0.12502,154.67,154.61,2.5359]
[1727690540650,3.35732,154.67,154.63,3.233]
[1727690541051,3.2328,154.64,154.61,2.5359]
[1727690541258,0.12502,154.67,154.61,2.5359]
[1727690541642,3.2327,154.65,154.61,2.5359]
[1727690541951,0.12502,154.67,154.61,2.5359]
[1727690542149,3.2325,154.66,154.61,2.5359]
[1727690542350,0.12502,154.67,154.61,2.5359]
[1727690542956,3.2332,154.62,154.61,1.2544]
[1727690543642,3.233,154.63,154.61,1.2544]
[1727690543845,0.12502,154.67,154.61,1.2544]
[1727690544251,0.12502,154.67,154.57,1.371]
[1727690544456,12.43,154.66,154.57,1.371]
[1727690544955,3.2335,154.61,154.57,1.371]
[1727690545152,3.2335,154.61,154.57,4.6051]
[1727690545359,0.12502,154.67,154.58,12.43]
[1727690545557,0.12502,154.67,154.58,15.6639]
[1727690546054,0.12502,154.67,154.6,12.43]
[1727690546255,0.12502,154.67,154.61,3.2332]
[1727690546454,3.2327,154.65,154.61,3.2332]
[1727690546654,3.2327,154.65,154.6,12.43]
[1727690546655,0.12502,154.67,154.62,3.2332]
[1727690546850,0.12502,154.67,154.6,12.43]
[1727690547056,3.2324,154.66,154.6,12.43]
[1727690547277,0.12502,154.67,154.6,12.43]
[1727690547450,0.12502,154.67,154.63,12.43]
[1727690548359,3.2325,154.66,154.61,12.43]
[1727690548548,0.12502,154.67,154.61,12.43]
[1727690548755,3.2325,154.66,154.62,3.233]
[1727690548954,0.12502,154.67,154.61,12.43]
[1727690549758,0.12502,154.67,154.63,12.43]
[1727690550751,0.12502,154.67,154.64,3.2328]
[1727690551551,0.12502,154.67,154.63,15.6628]
[1727690551953,3.35722,154.67,154.63,15.6628]
[1727690553557,3.2324,154.66,154.63,12.43]
[1727690556658,3.2324,154.66,154.63,15.663]
[1727690558163,3.35732,154.67,154.63,12.43]
[1727690558466,0.12502,154.67,154.63,1.2794]
[1727690558766,3.2327,154.65,154.63,1.2794]
[1727690559157,0.12502,154.67,154.63,1.2794]
[1727690559359,3.2325,154.66,154.63,1.2794]
[1727690560061,0.12502,154.67,154.57,1.371]
[1727690560265,0.12502,154.67,154.58,1.3599]
[1727690561367,3.2334,154.61,154.58,1.3599]
[1727690561853,0.12502,154.67,154.58,1.3599]
[1727690562058,0.94444365,154.66,154.58,1.3599]
[1727690562561,12.43,154.65,154.55,0.12502]
[1727690562761,16.24661558,154.65,154.55,0.12502]
[1727690562958,12.9423,154.65,154.55,0.12502]
[1727690563353,0.12502,154.67,154.57,12.43]
[1727690563563,0.12502,154.67,154.62,12.43]
[1727690564260,3.2327,154.65,154.62,12.43]
[1727690566365,0.12502,154.67,154.62,12.43]
[1727690566663,0.12502,154.67,154.6,12.43]
[1727690567363,0.12502,154.67,154.6,15.6636]
[1727690567569,3.2327,154.65,154.62,12.43]
[1727690568967,3.2327,154.65,154.62,15.6631]
[1727690569369,3.2325,154.66,154.62,15.6631]
[1727690569570,0.12502,154.67,154.62,12.43]
[1727690570369,3.2327,154.65,154.62,12.43]
[1727690570558,0.12502,154.67,154.62,12.43]
[1727690570764,0.12502,154.67,154.62,15.6631]
[1727690571065,0.12502,154.67,154.62,12.43]
[1727690571364,0.12502,154.67,154.64,12.43]
[1727690571565,82.82064398,154.72,154.66,12.43]
[1727690571874,79.58934398,154.72,154.69,12.43]
[1727690572265,79.58934398,154.72,154.67,3.9176]
[1727690572266,79.58934398,154.72,154.71,12.43]
[1727690573564,77.53444398,154.72,154.71,15.6613]
[1727690574573,77.53444398,154.72,154.71,12.43]
[1727690574867,77.53444398,154.72,154.69,12.43]
[1727690575064,0.12502,154.73,154.69,12.43]
[1727690575668,3.2315,154.71,154.69,12.43]
[1727690576067,0.12502,154.73,154.67,16.3476]
[1727690576570,3.2319,154.68,154.67,15.0539]
[1727690577275,3.2317,154.7,154.67,15.0539]
[1727690579064,3.2312,154.72,154.69,12.43]
[1727690579977,3.35592,154.73,154.71,12.43]
[1727690580178,0.12502,154.73,154.71,12.43]
[1727690580675,0.12502,154.73,154.71,15.6612]
[1727690581075,3.2304,154.76,154.72,3.2311]
[1727690581371,3.2304,154.76,154.74,12.43]
[1727690581676,3.2304,154.76,154.72,23.0811]
[1727690582670,1.3189,154.82,154.69,19.85]
[1727690583072,3.2306,154.75,154.71,3.2312]
[1727690584379,1.3189,154.82,154.69,19.85]
[1727690584676,19.85,154.81,154.67,22.59892]
[1727690584874,19.85,154.81,154.68,3.2319]
[1727690585269,19.85,154.81,154.67,25.83092]
[1727690585270,3.2314,154.71,154.67,25.83092]
[1727690585465,39.26,154.81,154.67,22.59892]
[1727690585875,3.2312,154.72,154.68,3.2319]
[1727690586280,39.26,154.81,154.68,3.2319]
[1727690586469,19.85,154.75,154.67,0.12502]
[1727690586677,1.2992,154.74,154.67,0.12502]
[1727690586977,3.2319,154.68,154.67,0.12502]
[1727690589175,3.2319,154.68,154.61,0.12502]